Cogmind - Beta 10.2 @@@ ROGUE MODE // 2020.10.31 @ 13:15:34 // Halloween2020/ForbiddenLore Player: Coronach Result: Self-destructed Performance ------------- Evolutions (0) 0 Regions Visited (4) 800 Robots Destroyed (30) 150 Value Destroyed (600) 600 Prototype IDs (27) 540 Alien Tech Used (0) 0 Bonus (300) 300 TOTAL SCORE: 2390 Bonus ------- Aligned with FarCom 300 Cogmind --------- Core Integrity 94/250 Matter 300/300 Energy 248/250 System Corruption 1% Temperature Cool (0) Movement Walking (150) Ox1 Location -9/Mines Parts ------- > --- POWER (1) -------- Ion Engine > --- PROPULSION (2) --- Aluminum Leg Aluminum Leg > --- UTILITY (2) ------ Large Storage Unit Signal Interpreter > --- WEAPON (2) ------- EM Pulse Gun Rocket Launcher > --- INVENTORY (10) --- Light Ion Engine Aluminum Leg Aluminum Leg Large Storage Unit Large Storage Unit Medium Battery (200) High-capacity Matter Pod (200) Experimental Sensor Array Peak State ------------ > --- POWER ------------ Light Ion Engine > --- PROPULSION ------- Aluminum Leg Aluminum Leg > --- UTILITY ---------- Large Storage Unit Signal Interpreter > --- WEAPON ----------- AWS/Thermal > --- INVENTORY -------- Light Ion Engine Aluminum Leg Aluminum Leg Large Storage Unit Large Storage Unit Medium Battery High-capacity Matter Pod EM Pulse Gun Grenade Launcher Mining Laser [Rating: 22] Favorites ----------- Power Light Ion Engine Engine Light Ion Engine Propulsion Aluminum Leg Leg Aluminum Leg Utility Signal Interpreter Device Tractor Beam Storage Large Storage Unit Processor Signal Interpreter Weapon EM Pulse Gun Energy Gun EM Pulse Gun Ballistic Gun Assault Rifle Launcher Grenade Launcher Special Weapon Mining Laser Build | -11 -10 -10 -10 -9 ------- Run | Scr Mat Min Exi Min Slots Evolved . | . . . . . Power . | . . . . . Propulsion . | . . . . . Utility . | . . . . . Weapon . | . . . . . Parts Attached 24 | 2 12 . . 10 Power 3 | . 1 . . 2 Engine 3 | . 1 . . 2 Core . | . . . . . Reactor . | . . . . . Propulsion 4 | . 2 . . 2 Treads . | . . . . . Leg 4 | . 2 . . 2 Wheel . | . . . . . Hover . | . . . . . Flight . | . . . . . Utility 4 | 1 3 . . . Device 1 | 1 . . . . Storage 2 | . 2 . . . Processor 1 | . 1 . . . Hackware . | . . . . . Protection . | . . . . . Artifact . | . . . . . Weapon 13 | 1 6 . . 6 Energy Gun 6 | 1 2 . . 3 Energy Cannon . | . . . . . Ballistic Gun 1 | . 1 . . . Ballistic Cannon . | . . . . . Launcher 4 | . 2 . . 2 Special Weapon 2 | . 1 . . 1 Impact Weapon . | . . . . . Slashing Weapon . | . . . . . Piercing Weapon . | . . . . . Special Melee Weapon . | . . . . . Unidentified Prototypes . | . . . . . Parts Lost . | . . . . . Power . | . . . . . Propulsion . | . . . . . Utility . | . . . . . Weapon . | . . . . . Highest Loss Streak . | . . . . . Average Slot Usage (%) 95 | . 99 100 100 88 Engine 14 | . 14 14 14 14 Leg 28 | . 28 28 28 28 Storage 14 | . 14 14 14 14 Processor 13 | . 11 14 14 14 Energy Gun 13 | . 13 14 14 14 Ballistic Gun 3 | . 13 . . . Special Weapon 6 | . . 14 14 2 Naked Turns . | . . . . . Heaviest Build 29 | 12 23 22 22 29 Greatest Support 20 | 20 20 20 20 20 Greatest Overweight (x) 1 | . 1 1 1 1 Average Overweight (x) . | . . 1 1 1 Largest Inventory Capacity 10 | 6 10 10 10 10 Average Capacity 9 | 6 8 10 10 10 Most Carried 10 | 6 10 10 10 10 Average Carried 9 | 5 8 10 9 9 Final Capacity 10 | 6 10 10 10 10 Final Carried 10 | 6 10 10 10 8 Class Distribution -------------------- 82% | Scavenger-Mutant 17% | Mutant Dominant Class ---------------- Mutant | -10/Materials Scavenger-Mutant | -10/Mines Scavenger-Mutant | -10/Exiles Scavenger-Mutant | -9/Mines Resources | -11 -10 -10 -10 -9 ----------- Run | Scr Mat Min Exi Min Matter Collected 713 | 226 335 42 . 110 Remotely 13 | 10 3 . . . Salvage Created 812 | 79 408 . . 325 Parts 53 | 2 32 . . 19 Haulers Intercepted . | . . . . . Recyclers Shooed . | . . . . . Parts Field Recycled . | . . . . . Retrieved Matter . | . . . . . Parts Self-Destructed . | . . . . . Prevented . | . . . . . Kills | -11 -10 -10 -10 -9 ------- Run | Scr Mat Min Exi Min Combat Hostiles Destroyed 23 | . 11 . . 12 Guns 20 | . 9 . . 11 AOE 3 | . 2 . . 1 Classes Destroyed 6 | 1 4 . . 1 Worker 3 | . 3 . . . Recycler 1 | 1 . . . . Watcher 3 | . 3 . . . Swarmer 12 | . 6 . . 6 Grunt 9 | . 5 . . 4 Duelist 2 | . . . . 2 Best Kill Streak 4 | 1 4 . . 4 Combat Bots Only 4 | . 3 . . 4 Max Kills in Single Turn 2 | 1 2 . . 2 Gunslinging . | . . . . . Exploded 1 | . 1 . . 1 Melee . | . . . . . Uniques/NPCs Destroyed . | . . . . . Combat | -11 -10 -10 -10 -9 -------- Run | Scr Mat Min Exi Min Damage Taken 746 | . 271 . . 475 Core 156 | . 63 . . 93 Absorbed by Shields . | . . . . . Core Remaining (%) 100 | 100 . . . . Volleys Fired 38 | 2 31 . . 5 Largest 2 | 2 2 . . 2 Hottest 100 | 60 60 . . 100 Shots Fired 103 | 4 59 . . 40 Gun 99 | 4 57 . . 38 Cannon . | . . . . . Launcher 3 | . 2 . . 1 Special 1 | . . . . 1 Kinetic 31 | 2 29 . . . Thermal 35 | . . . . 35 Explosive 3 | . 2 . . 1 Electromagnetic 34 | 2 28 . . 4 Robot Hit Streak 9 | 1 9 . . 9 Robot Miss Streak 6 | 2 6 . . 2 Penetration Max . | . . . . . Secondary Targets . | . . . . . Autonomous 35 | . . . . 35 Shots Hit Robots 61 | 1 31 . . 29 Core Hits 41 | 2 23 . . 16 Critical Hits . | . . . . . Critical Kills . | . . . . . Critical Parts Destroyed . | . . . . . Melee Attacks . | . . . . . Impact . | . . . . . Slashing . | . . . . . Piercing . | . . . . . Sneak Attacks . | . . . . . Combat Hostiles . | . . . . . Follow-up Attacks . | . . . . . Damage Inflicted 1649 | 25 634 . . 990 Guns 1294 | 25 383 . . 886 Cannons . | . . . . . Explosions 329 | . 251 . . 78 Melee . | . . . . . Ramming 26 | . . . . 26 Kinetic 122 | . 122 . . . Thermal 957 | . 114 . . 843 Explosive 215 | . 137 . . 78 Electromagnetic 329 | 25 261 . . 43 Impact . | . . . . . Slashing . | . . . . . Piercing . | . . . . . Highest Corruption 1 | . . . . 1 Average Corruption 1 | . . . . 1 Corruption Purged . | . . . . . Overload Shots . | . . . . . Overflow Damage 2 | . . . . 2 Projectiles . | . . . . . Explosions 2 | . . . . 2 Melee . | . . . . . Knockbacks . | . . . . . Impact . | . . . . . Kinetic . | . . . . . Secondary . | . . . . . Self-Inflicted Damage 36 | . 32 . . 4 Shots 1 | . 1 . . . Rammed 3 | . . . . 3 Targets Rammed 11 | . . . . 11 Kicked 8 | . . . . 8 Crushed . | . . . . . Highest Temperature 36 | . 36 . . 20 Average Temperature 15 | . 16 . . 9 Received Heat Transfer 84 | . 66 . . 18 Siege Activations . | . . . . . Robots Corrupted . | . . . . . Combat Hostiles . | . . . . . Parts Fried . | . . . . . Impact Corruptions . | . . . . . Robots Melted . | . . . . . Combat Hostiles . | . . . . . Parts Melted 2 | . . . . 2 Heat Transferred 1173 | . 100 . . 1073 Parts Sabotaged . | . . . . . Parts Stolen . | . . . . . Parts Stripped . | . . . . . Power Chain Reactions 2 | . 2 . . . Missiles Intercepted . | . . . . . Alert | -11 -10 -10 -10 -9 ------- Run | Scr Mat Min Exi Min Peak Influence 293 | 5 293 81 . 109 Initial 81 | . 3 81 . . Average 82 | 4 128 81 . 48 Maximum Alert Level 1 | . 1 . . . Low Security (%) 93 | 100 82 100 . 100 Level 1 6 | . 17 . . . Level 2 . | . . . . . Level 3 . | . . . . . Level 4 . | . . . . . Level 5 . | . . . . . High Security . | . . . . . Max Security . | . . . . . Squads Dispatched 1 | . 1 . . . Investigation 1 | . 1 . . . Extermination . | . . . . . Reinforcement . | . . . . . Assault . | . . . . . Garrison . | . . . . . Intercept . | . . . . . Construction Impeded . | . . . . . Haulers Reinforced . | . . . . . Stealth | -11 -10 -10 -10 -9 --------- Run | Scr Mat Min Exi Min Distress Signals 2 | . 2 . . . Communications Jammed . | . . . . . Distress Signals . | . . . . . Times Spotted 37 | . 20 . . 17 Peak Tracking Total 5 | . 5 . . 4 Tactical Retreats 5 | . 1 . . 4 Traps | -11 -10 -10 -10 -9 ------- Run | Scr Mat Min Exi Min Traps Triggered . | . . . . . Indirectly . | . . . . . Trap Hack Attempts . | . . . . . Triggered . | . . . . . Disarmed 3 | . 3 . . . Reprogrammed . | . . . . . Reused . | . . . . . Traps Extracted . | . . . . . Installed . | . . . . . Triggered . | . . . . . Machines | -11 -10 -10 -10 -9 ---------- Run | Scr Mat Min Exi Min Machines Disabled 1 | . 1 . . . Max in Single Turn 1 | . 1 . . . Machines Sabotaged . | . . . . . Garrisons Compromised . | . . . . . Overloaded Fab Kills . | . . . . . Fab Network Shutdowns . | . . . . . Hacking | -11 -10 -10 -10 -9 --------- Run | Scr Mat Min Exi Min Machines Accessed 8 | . 7 . 1 . Terminals 4 | . 4 . . . Fabricators . | . . . . . Repair Stations 1 | . 1 . . . Recycling Units 2 | . 2 . . . Scanalyzers . | . . . . . Garrison Access . | . . . . . Total Hacks 29 | . 28 . 1 . Successful 17 | . 16 . 1 . Failed 12 | . 12 . . . Catastrophic 1 | . 1 . . . Database Lockouts . | . . . . . Manual 15 | . 14 . 1 . Terminals 21 | . 21 . . . Fabricators . | . . . . . Repair Stations 3 | . 3 . . . Recycling Units 4 | . 4 . . . Scanalyzers . | . . . . . Garrison Access . | . . . . . Terminal Hacks 6 | . 5 . 1 . Prototype ID Bank 2 | . 2 . . . Branch Access Points 1 | . 1 . . . Locate Traps 1 | . 1 . . . Disarm Traps 1 | . 1 . . . EX-Prototype ID Bank 1 | . . . 1 . Fabricator Hacks . | . . . . . Repair Station Hacks 2 | . 2 . . . Scan Component 1 | . 1 . . . Repair 1 | . 1 . . . Recycling Unit Hacks 4 | . 4 . . . Report Inventory 2 | . 2 . . . Retrieve Components 2 | . 2 . . . Scanalyzer . | . . . . . Garrison Access Hacks . | . . . . . Unauthorized Hacks 5 | . 5 . . . Terminals 5 | . 5 . . . Track 2 | . 2 . . . Botnet 3 | . 3 . . . Fabricators . | . . . . . Repair Stations . | . . . . . Recycling Units . | . . . . . Scanalyzers . | . . . . . Garrison Access . | . . . . . Data Cores Recovered . | . . . . . Used . | . . . . . Hacking Detections 6 | . 6 . . . Full Trace Events 2 | . 2 . . . Feedback Events . | . . . . . Feedback Blocked . | . . . . . Robot Schematics Acquired . | . . . . . Robots Built . | . . . . . Matter . | . . . . . Time . | . . . . . Total Robot Build Rating . | . . . . . Part Schematics Acquired . | . . . . . Parts Built . | . . . . . Matter . | . . . . . Time . | . . . . . Total Part Build Rating . | . . . . . Parts Repaired 1 | . 1 . . . Time 26 | . 26 . . . Parts Recycled . | . . . . . Recycled Matter . | . . . . . Retrieved Matter . | . . . . . Retrieved Components 6 | . 6 . . . Parts Scanalyzed . | . . . . . Part Schematics Acquired . | . . . . . Parts Damaged . | . . . . . Bothacking | -11 -10 -10 -10 -9 ------------ Run | Scr Mat Min Exi Min Used RIF Installer . | . . . . . Robots Hacked . | . . . . . Non-combat . | . . . . . Combat . | . . . . . Robot Hacks Applied . | . . . . . Relay Couplers Released . | . . . . . Robots Rewired . | . . . . . Allies Hacked . | . . . . . Hacks Repelled . | . . . . . Allies | -11 -10 -10 -10 -9 -------- Run | Scr Mat Min Exi Min Total Allies 3 | . . . . 3 Largest Group 3 | . . . . 3 Highest-Rated Group 40 | . . . . 40 Highest-Rated Ally 16 | . . . . 16 Total Orders 2 | . . . . 2 STAY 1 | . . . . 1 FOLLOW 1 | . . . . 1 Ally Attacks 2 | . . . . 2 Total Damage 27 | . . . . 27 Kills . | . . . . . Allies Corrupted . | . . . . . Allies Melted . | . . . . . Intel | -11 -10 -10 -10 -9 ------- Run | Scr Mat Min Exi Min Robot Analysis Total . | . . . . . Derelict Logs Recovered 1 | . . . . 1 Drone Launches . | . . . . . Drone Recoveries . | . . . . . Exploration | -11 -10 -10 -10 -9 ------------- Run | Scr Mat Min Exi Min Turns Passed 2861 | 28 754 331 791 957 Spaces Moved 1729 | 15 434 220 526 534 Core . | . . . . . Treads . | . . . . . Legs 1729 | 15 434 220 526 534 Wheels . | . . . . . Hover . | . . . . . Flight . | . . . . . Fastest Speed 120 | 120 120 150 150 150 Average Speed 146 | 120 137 150 150 150 Slowest Speed 150 | 120 150 150 150 150 Overloaded Moves . | . . . . . Propulsion Burnouts . | . . . . . Robots Hopped . | . . . . . Cave-ins Triggered . | . . . . . Exploration Rate (%) 52 | 4 76 29 93 61 Regions Visited 4 Branch Regions 3 Pre-discovered Areas . | . . . . . Known Exits Taken 3 | . 1 1 1 . Unknown Exits Taken 1 | 1 . . . . Scrap Searched 1 | . . . . 1 Spaces Dug 1 | . . . . 1 Terrain Destroyed 29 | . 18 . . 11 Melee . | . . . . . Projectile 6 | . . . . 6 AOE 23 | . 18 . . 5 Terrain Rammed . | . . . . . Walls Destroyed . | . . . . . Machines Disabled . | . . . . . Actions | -11 -10 -10 -10 -9 --------- Run | Scr Mat Min Exi Min Total 1991 | 20 540 221 530 680 Wait 137 | . 29 2 . 106 Move 1725 | 14 433 219 525 534 Hop . | . . . . . Pick Up 23 | 1 16 . 2 4 Fast Attach 5 | 1 3 . . 1 Attach 4 | . . . . 4 Detach 1 | . . . . 1 Swap 15 | 1 9 . . 5 Drop 32 | 1 19 . 3 9 Fire 38 | 2 31 . . 5 Melee . | . . . . . Ram . | . . . . . Kick 11 | . . . . 11 Crush . | . . . . . Escape Stasis . | . . . . . Rewire . | . . . . . Trap . | . . . . . Miscellaneous . | . . . . . Route ------- -11/Scrapyard -10/Materials (discovered 2 exits: *Mat / *Min) -10/Mines -10/Exiles (discovered 2 exits: *Min x2) -9/Mines History --------- Turn | Location | Event 9 | -11/Scrapyard | Discovered new exit (range 3) 29 | -11/Scrapyard | Entered Materials 229 | -10/Materials | Identified exit to Mines 321 | -10/Materials | Build established: Mutant 529 | -10/Materials | Discovered new exit (range 15) 620 | -10/Materials | Identified exit to Materials 726 | -10/Materials | Repaired EM Pulse Gun 783 | -10/Materials | Entered Mines 819 | -10/Mines | Build established: Scavenger-Mutant 1015 | -10/Mines | Deemed a non-threat by the Exiles lab entrance 1015 | -10/Mines | Discovered new exit (range 5) 1019 | -10/Mines | Identified exit to Exiles 1062 | -10/Mines | Assembled infested the area 1067 | -10/Mines | Assisted by a Guerilla fighting off Assembled 1114 | -10/Mines | Entered Exiles 1138 | -10/Exiles | Discovered new exit (range 14) 1156 | -10/Exiles | Identified exit to Mines 1183 | -10/Exiles | Met 8R-AWN 1210 | -10/Exiles | Met EX-HEX 1297 | -10/Exiles | Met EX-DEC 1328 | -10/Exiles | Visited The Gauntlet 1552 | -10/Exiles | Discovered exit to Mines (range 10) 1662 | -10/Exiles | Met EX-BIN 1686 | -10/Exiles | Aligned with FarCom system 1687 | -10/Exiles | Given EX-Vault access code 1753 | -10/Exiles | Opened EX-Vault 1765 | -10/Exiles | Found AWS/Thermal 1794 | -10/Exiles | Warned to stay clear of 0b10 Research branches 1905 | -10/Exiles | Left Exiles lab with AWS/Thermal 1905 | -10/Exiles | Entered Mines 1982 | -9/Mines | Assisted by bots powering up and referring to "LRC-V3" 2193 | -9/Mines | Received a Rocket Launcher from a helpful Derelict 2504 | -9/Mines | Found a damaged Exp. Sensor Array with a note attached 2508 | -9/Mines | Found Prototype Device 2520 | -9/Mines | Learned Materials garrison access intel 2843 | -9/Mines | Core integrity fell below 50% 2862 | -9/Mines | Self-destructed Last Messages --------------- 02508_ Acquired Prototype Device. 02520_ Acquired derelict log, extracted data. Data stored: Materials garrison access intel. 02608_ G-34 Mercenary destroyed. 02617_ K-01 Serf collects debris. 02807_ Destroyed Flight Unit. 02812_ U-05 Engineer builds a Wall. 02818_ Destroyed Lgt. Ion Engine. 02819_ AWS/Thermal suddenly breaks down. 02836_ Kicked S-10 Pest out of the way. 02840_ Slammed into S-10 Pest. 02840_ Destabilizing: System corrupted (+1). 02842_ Kicked S-10 Pest out of the way. 02845_ Slammed into S-10 Pest. 02848_ Kicked S-10 Pest out of the way. 02852_ Dropped Broken AWS/Thermal. 02854_ Acquired 2 matter. 02855_ S-10 Pest destroyed. 02856_ Acquired 18 matter. 02859_ S-10 Pest destroyed. Map ----- +----------------------------------------------------+ | ## ########[==%%#??? ????????????????????? | | ##=###*#??? ????????????????????? | | ### !]%=###[###?? ?????????????????????? | | # ##?# #### #?? ?????????????????????? | | ## ##??#[ #??# #### ?????????????????????? | | ?# #??## #??# """ #" ?????????????????????? | | ?# ##?## #??# """ ## ## #?????????????????????? | | ?####??# #### """ ## ## #?????????????????????? | | ???????# ######### ## #?????????????????????? | | ???????## #????#=* #?######??????????????? | | ????????## #????#%#### ### ##?????????????? | | ?????????## ##????#[#??# #########?????? | | ??????????# ###????## #### * #?????? | | ??????????# #?????## ##### =%/%! #?????? | | ?????###??# ####### #?## =######## #?????? | | ????## ### ## #?## ##??????# #?????? | | ????# |## ##### ##?## ###???????# #?????? | | ???## ##### #???##= #???# #?????????# #?????? | | #### #### ##???#% #???# #?????????# #?##### | | ## #???# #???# #?????????# ### # | | ##### #???## ##???# #?????????# ## | | ????### ##????# ##????# #?????????# | | ??????# # ##?????# #?????# #????????# | | ??????# ## ##??????# #?????#%#????????# # | | ??????# #####???????#*#######s#????????## ## | | ??????# #???????????#%%%@%%%%%#?????????## #? | | ??????# #???????????#[#########??????????## ##? | | ??????# #??????????## ###?????????????????#####?? | | ??????# #?########## ##??????????????????????? | | ??????# #?# #??????????????????????? | | ??????# g### """ # #??????????????????????? | | ??????# """ ## #?????????????????????? | | ??????######b """ ### #?????????????????????? | | ???????????#g #??# ##?????????????????????? | | ???????????# """ #???###??????????????????????? | | ???????????# """ #????????????????????????????? | | ???????????# """ #????????????????????????????? | | ???????????# #????????????????????????????? | | ???????????# #????????????????????????????? | | ???????????# #????????????????????????????? | | ???????????##########????????????????????????????? | | ?????????????????????????????????????????????????? | | ?????????????????????????????????????????????????? | | | | | | | | | | | | | | | +----------------------------------------------------+ Best States ------------- Heat Dissipation 25 Energy Generation 10 Energy Capacity 250 Matter Stores 300 Matter Capacity 300 Sight Range 16 Terrain Scan Density 10 Evasion (%) 40 Item Schematics ----------------- None Robot Schematics ------------------ None Fabricated ------------ Nothing Alien Tech Used ----------------- None Achievements -------------- None Challenges ------------ None Game ------ Seed MeleeOmegaFlail Manual? 0 Play Time 00:45:55 Cumulative 41.1 hours Start 2020.10.31 @ 12:14:01 End 2020.10.31 @ 13:15:34 Sessions 1 Manual Loads 0 Difficulty Rogue Special Mode Halloween2020/ForbiddenLore Game No. 21 Rogue 18 Adventurer 0 Explorer 3 Win Type - Total 0 Types 0/0/0/0/0/0/0/0/0 Lore% 22 Gallery% 39 Achievement% 26 Wizard Run 0 Options --------- ASCII 0 Keyboard 0 Movement Numpad Keybinds 0 Fullscreen 2 Font 16/Dina Map View 76x50 Tactical HUD 1 Map Filters NONE Filters NONE Steam 1 RUN: 8229be82-9382-4509-aec2-0eafb545fb25